[Event "Titled Tuesday Blitz April 18 Early 2023"]
[White "kuanysh1981"]
[Black "AyMitecK"]
[WhiteElo "2368"]
[BlackElo "2574"]
[Result "1-0"]
[Round "03"]
[TimeControl "180+2"]
[Date "2023.04.18"]
[WhiteClock "0:00:10"]
[BlackClock "0:00:32"]

1. e4 {[%clk 0:03:00]}  e6 {[%clk 0:02:57]} 2. d4 {[%clk 0:03:00]}  d5 {[%clk 0:02:56]} 3. Bd3 {[%clk 0:02:59]}  dxe4 {[%clk 0:02:54]} 4. Bxe4 {[%clk 0:02:58]}  Nf6 {[%clk 0:02:55]} 5. Bf3 {[%clk 0:02:57]}  Nbd7 {[%clk 0:02:56]} 6. Ne2 {[%clk 0:02:56]}  Bd6 {[%clk 0:02:57]} 7. O-O {[%clk 0:02:55]}  O-O {[%clk 0:02:57]} 8. c4 {[%clk 0:02:54]}  e5 {[%clk 0:02:57]} 9. Nbc3 {[%clk 0:02:54]}  exd4 {[%clk 0:02:55]} 10. Nxd4 {[%clk 0:02:50]}  Ne5 {[%clk 0:02:55]} 11. Be2 {[%clk 0:02:38]}  c6 {[%clk 0:02:39]} 12. h3 {[%clk 0:02:35]}  h6 {[%clk 0:02:37]} 13. b3 {[%clk 0:02:24]}  Bc5 {[%clk 0:02:28]} 14. Nf3 {[%clk 0:02:19]}  Qc7 {[%clk 0:02:20]} 15. Bb2 {[%clk 0:02:17]}  Ng6 {[%clk 0:02:12]} 16. Qc2 {[%clk 0:02:12]}  Nf4 {[%clk 0:02:09]} 17. Na4 {[%clk 0:02:01]}  Be7 {[%clk 0:01:59]} 18. Rfe1 {[%clk 0:01:53]}  Nxe2+ {[%clk 0:01:47]} 19. Qxe2 {[%clk 0:01:50]}  Bd8 {[%clk 0:01:40]} 20. Be5 {[%clk 0:01:44]}  Qa5 {[%clk 0:01:35]} 21. Rad1 {[%clk 0:01:43]}  Bf5 {[%clk 0:01:31]} 22. Bc3 {[%clk 0:01:32]}  Qc7 {[%clk 0:01:24]} 23. Be5 {[%clk 0:01:24]}  Qa5 {[%clk 0:01:22]} 24. Bc3 {[%clk 0:01:19]}  Qa6 {[%clk 0:01:06]} 25. Qe5 {[%clk 0:00:59]}  Bh7 {[%clk 0:00:53]} 26. Nc5 {[%clk 0:00:55]}  Qb6 {[%clk 0:00:47]} 27. Nd7 {[%clk 0:00:54]}  Qc7 {[%clk 0:00:40]} 28. Qxc7 {[%clk 0:00:47]}  Bxc7 {[%clk 0:00:40]} 29. Nxf8 {[%clk 0:00:46]}  Rxf8 {[%clk 0:00:41]} 30. Bxf6 {[%clk 0:00:46]}  gxf6 {[%clk 0:00:41]} 31. Rd7 {[%clk 0:00:47]}  Ba5 {[%clk 0:00:40]} 32. Red1 {[%clk 0:00:41]}  b5 {[%clk 0:00:37]} 33. Rxa7 {[%clk 0:00:39]}  Bc3 {[%clk 0:00:32]} 34. cxb5 {[%clk 0:00:36]}  cxb5 {[%clk 0:00:32]} 35. Rc7 {[%clk 0:00:35]}  b4 {[%clk 0:00:32]} 36. Rdd7 {[%clk 0:00:24]}  Bf5 {[%clk 0:00:30]} 37. Rd6 {[%clk 0:00:20]}  Kg7 {[%clk 0:00:28]} 38. Nd4 {[%clk 0:00:19]}  Bb1 {[%clk 0:00:27]} 39. Ne6+ {[%clk 0:00:19]}  Kg8 {[%clk 0:00:25]} 40. Nxf8 {[%clk 0:00:18]}  Kxf8 {[%clk 0:00:26]} 41. a4 {[%clk 0:00:17]}  Be5 {[%clk 0:00:22]} 42. Rd8+ {[%clk 0:00:17]}  Kg7 {[%clk 0:00:23]} 43. Rc4 {[%clk 0:00:16]}  Ba2 {[%clk 0:00:22]} 44. Rxb4 {[%clk 0:00:16]}  Bb1 {[%clk 0:00:22]} 45. Rg4+ {[%clk 0:00:16]}  Kh7 {[%clk 0:00:22]} 46. b4 {[%clk 0:00:16]}  f5 {[%clk 0:00:22]} 47. Rc4 {[%clk 0:00:15]}  Bf6 {[%clk 0:00:23]} 48. Rdc8 {[%clk 0:00:14]}  Bd3 {[%clk 0:00:22]} 49. b5 {[%clk 0:00:13]}  f4 {[%clk 0:00:21]} 50. b6 {[%clk 0:00:13]}  Bxc4 {[%clk 0:00:21]} 51. Rxc4 {[%clk 0:00:12]}  Be5 {[%clk 0:00:22]} 52. b7 {[%clk 0:00:12]}  f6 {[%clk 0:00:21]} 53. Rc8 {[%clk 0:00:12]}  Kg6 {[%clk 0:00:22]} 54. b8=Q {[%clk 0:00:11]}  Bxb8 {[%clk 0:00:23]} 55. Rxb8 {[%clk 0:00:12]}  f3 {[%clk 0:00:24]} 56. a5 {[%clk 0:00:12]}  fxg2 {[%clk 0:00:25]} 57. a6 {[%clk 0:00:13]}  h5 {[%clk 0:00:25]} 58. a7 {[%clk 0:00:14]}  h4 {[%clk 0:00:25]} 59. a8=Q {[%clk 0:00:13]}  f5 {[%clk 0:00:26]} 60. Qxg2+ {[%clk 0:00:13]}  Kf6 {[%clk 0:00:27]} 61. Qf3 {[%clk 0:00:13]}  Ke5 {[%clk 0:00:28]} 62. Rb5+ {[%clk 0:00:12]}  Ke6 {[%clk 0:00:28]} 63. Qxf5+ {[%clk 0:00:10]}  Kd6 {[%clk 0:00:29]} 64. Qd5+ {[%clk 0:00:10]}  Ke7 {[%clk 0:00:29]} 65. Rb7+ {[%clk 0:00:10]}  Kf6 {[%clk 0:00:30]} 66. Rb6+ {[%clk 0:00:11]}  Ke7 {[%clk 0:00:30]} 67. Qb7+ {[%clk 0:00:10]}  Kd8 {[%clk 0:00:31]} 68. Ra6 {[%clk 0:00:09]}  Ke8 {[%clk 0:00:32]} 69. Ra8# {[%clk 0:00:10]} 1-0


[Site "https://www.chess.com"]

[Event "Titled Tuesday Blitz April 18 Early 2023"]
[White "crosky"]
[Black "Dixit, Nikhil"]
[BlackFideId "5059534"]
[WhiteElo "2348"]
[BlackElo "2207"]
[Result "1-0"]
[Round "03"]
[TimeControl "180+2"]
[Date "2023.04.18"]
[WhiteClock "0:01:32"]
[BlackClock "0:00:41"]

1. c4 {[%clk 0:03:00]}  c5 {[%clk 0:02:58]} 2. g3 {[%clk 0:03:00]}  Nc6 {[%clk 0:02:57]} 3. Bg2 {[%clk 0:03:01]}  h5 {[%clk 0:02:57]} 4. Nf3 {[%clk 0:03:00]}  h4 {[%clk 0:02:57]} 5. Nxh4 {[%clk 0:03:00]}  d6 {[%clk 0:02:54]} 6. Nc3 {[%clk 0:02:59]}  e5 {[%clk 0:02:48]} 7. d3 {[%clk 0:02:58]}  Rxh4 {[%clk 0:02:46]} 8. gxh4 {[%clk 0:02:58]}  Qxh4 {[%clk 0:02:41]} 9. Nd5 {[%clk 0:02:58]}  Qd8 {[%clk 0:02:33]} 10. Bg5 {[%clk 0:02:59]}  f6 {[%clk 0:02:31]} 11. Bd2 {[%clk 0:02:55]}  Be6 {[%clk 0:02:31]} 12. e3 {[%clk 0:02:52]}  Nge7 {[%clk 0:02:29]} 13. Qh5+ {[%clk 0:02:40]}  Bf7 {[%clk 0:02:28]} 14. Qh3 {[%clk 0:02:40]}  Nxd5 {[%clk 0:02:25]} 15. Bxd5 {[%clk 0:02:39]}  Bxd5 {[%clk 0:02:23]} 16. cxd5 {[%clk 0:02:40]}  Ne7 {[%clk 0:02:23]} 17. Qe6 {[%clk 0:02:38]}  Qd7 {[%clk 0:02:18]} 18. Qxd7+ {[%clk 0:02:36]}  Kxd7 {[%clk 0:02:19]} 19. e4 {[%clk 0:02:37]}  Rc8 {[%clk 0:01:46]} 20. b3 {[%clk 0:02:36]}  b5 {[%clk 0:01:46]} 21. Rc1 {[%clk 0:02:27]}  Ke8 {[%clk 0:01:33]} 22. Ke2 {[%clk 0:02:27]}  b4 {[%clk 0:01:32]} 23. a3 {[%clk 0:02:11]}  a5 {[%clk 0:01:26]} 24. axb4 {[%clk 0:02:10]}  axb4 {[%clk 0:01:27]} 25. Ra1 {[%clk 0:02:11]}  Rc7 {[%clk 0:01:25]} 26. Ra8+ {[%clk 0:02:11]}  Kf7 {[%clk 0:01:26]} 27. Rha1 {[%clk 0:02:11]}  Nc8 {[%clk 0:01:20]} 28. f4 {[%clk 0:02:04]}  Be7 {[%clk 0:01:08]} 29. f5 {[%clk 0:02:04]}  Nb6 {[%clk 0:00:55]} 30. R8a7 {[%clk 0:01:59]}  Rxa7 {[%clk 0:00:46]} 31. Rxa7 {[%clk 0:01:59]}  Ke8 {[%clk 0:00:46]} 32. Rb7 {[%clk 0:01:46]}  Nd7 {[%clk 0:00:45]} 33. Kf3 {[%clk 0:01:45]}  Nf8 {[%clk 0:00:45]} 34. Kg4 {[%clk 0:01:40]}  Kf7 {[%clk 0:00:45]} 35. Be3 {[%clk 0:01:33]}  Nh7 {[%clk 0:00:40]} 36. Bxc5 {[%clk 0:01:31]}  dxc5 {[%clk 0:00:41]} 37. d6 {[%clk 0:01:32]} 1-0


[Site "https://www.chess.com"]

[Event "Titled Tuesday Blitz April 18 Early 2023"]
[White "Rodriguez Santiago, Jaime"]
[Black "Han, Yichen"]
[WhiteFideId "3100898"]
[BlackFideId "1054430"]
[WhiteElo "2025"]
[BlackElo "2342"]
[Result "0-1"]
[Round "03"]
[TimeControl "180+2"]
[Date "2023.04.18"]
[WhiteClock "0:00:41"]
[BlackClock "0:00:33"]

1. c4 {[%clk 0:03:00]}  e6 {[%clk 0:02:52]} 2. Nf3 {[%clk 0:03:00]}  d5 {[%clk 0:02:51]} 3. g3 {[%clk 0:03:00]}  a6 {[%clk 0:02:44]} 4. b3 {[%clk 0:02:53]}  b5 {[%clk 0:02:35]} 5. cxd5 {[%clk 0:02:35]}  exd5 {[%clk 0:02:28]} 6. Bb2 {[%clk 0:02:34]}  Nf6 {[%clk 0:02:26]} 7. Bg2 {[%clk 0:02:33]}  Be7 {[%clk 0:02:17]} 8. O-O {[%clk 0:02:32]}  O-O {[%clk 0:02:17]} 9. d3 {[%clk 0:02:30]}  c5 {[%clk 0:02:14]} 10. Nbd2 {[%clk 0:02:28]}  Nc6 {[%clk 0:02:10]} 11. Rc1 {[%clk 0:02:26]}  Bb7 {[%clk 0:02:03]} 12. e4 {[%clk 0:02:16]}  Nb4 {[%clk 0:01:52]} 13. Qe2 {[%clk 0:01:46]}  dxe4 {[%clk 0:01:29]} 14. dxe4 {[%clk 0:01:43]}  Qd3 {[%clk 0:01:28]} 15. Qxd3 {[%clk 0:01:13]}  Nxd3 {[%clk 0:01:25]} 16. Bxf6 {[%clk 0:01:13]}  Bxf6 {[%clk 0:01:19]} 17. Rc2 {[%clk 0:01:11]}  Rac8 {[%clk 0:01:03]} 18. Rd1 {[%clk 0:01:08]}  Rfe8 {[%clk 0:00:55]} 19. Bf1 {[%clk 0:00:57]}  Nb4 {[%clk 0:00:54]} 20. Rcc1 {[%clk 0:00:47]}  Nxa2 {[%clk 0:00:54]} 21. Rc2 {[%clk 0:00:48]}  Nc3 {[%clk 0:00:47]} 22. Rdc1 {[%clk 0:00:44]}  Nxe4 {[%clk 0:00:42]} 23. Bg2 {[%clk 0:00:42]}  Nxd2 {[%clk 0:00:36]} 24. Rxd2 {[%clk 0:00:43]}  Bxf3 {[%clk 0:00:35]} 25. Bxf3 {[%clk 0:00:41]}  Bg5 {[%clk 0:00:33]} 0-1


[Site "https://www.chess.com"]

[Event "Titled Tuesday Blitz April 18 Early 2023"]
[White "Andersson, Bjorn 1971"]
[Black "Camacho Collados, Jose"]
[WhiteFideId "1702114"]
[BlackFideId "2265427"]
[WhiteElo "2176"]
[BlackElo "2198"]
[Result "1-0"]
[Round "03"]
[TimeControl "180+2"]
[Date "2023.04.18"]
[WhiteClock "0:00:17"]
[BlackClock "0:00:02"]

1. e4 {[%clk 0:03:00]}  b6 {[%clk 0:03:00]} 2. d4 {[%clk 0:02:59]}  Bb7 {[%clk 0:03:00]} 3. Nc3 {[%clk 0:03:00]}  e6 {[%clk 0:03:00]} 4. Bd3 {[%clk 0:02:59]}  Bb4 {[%clk 0:03:00]} 5. Ne2 {[%clk 0:02:57]}  d5 {[%clk 0:02:59]} 6. e5 {[%clk 0:02:57]}  c5 {[%clk 0:03:00]} 7. Bb5+ {[%clk 0:02:46]}  Nc6 {[%clk 0:02:57]} 8. a3 {[%clk 0:02:45]}  Bxc3+ {[%clk 0:02:55]} 9. bxc3 {[%clk 0:02:45]}  a6 {[%clk 0:02:52]} 10. Bxc6+ {[%clk 0:02:45]}  Bxc6 {[%clk 0:02:52]} 11. dxc5 {[%clk 0:02:42]}  bxc5 {[%clk 0:02:52]} 12. Be3 {[%clk 0:02:42]}  Qa5 {[%clk 0:02:48]} 13. O-O {[%clk 0:02:41]}  Ne7 {[%clk 0:02:48]} 14. Ng3 {[%clk 0:02:39]}  Qxc3 {[%clk 0:02:46]} 15. Qg4 {[%clk 0:02:28]}  Qxe5 {[%clk 0:02:26]} 16. Bxc5 {[%clk 0:02:25]}  h5 {[%clk 0:02:26]} 17. Qb4 {[%clk 0:02:13]}  Rb8 {[%clk 0:02:17]} 18. Bd6 {[%clk 0:02:13]}  Rxb4 {[%clk 0:02:11]} 19. Bxe5 {[%clk 0:02:13]}  Rg4 {[%clk 0:02:12]} 20. h3 {[%clk 0:01:57]}  Rg6 {[%clk 0:02:11]} 21. Rab1 {[%clk 0:01:49]}  O-O {[%clk 0:01:46]} 22. Nxh5 {[%clk 0:01:44]}  Bb5 {[%clk 0:01:11]} 23. Rfe1 {[%clk 0:01:38]}  Nc6 {[%clk 0:01:11]} 24. Bd6 {[%clk 0:01:32]}  Rd8 {[%clk 0:01:11]} 25. Bc5 {[%clk 0:01:30]}  e5 {[%clk 0:01:05]} 26. f4 {[%clk 0:01:15]}  e4 {[%clk 0:01:03]} 27. g4 {[%clk 0:01:10]}  f5 {[%clk 0:01:01]} 28. g5 {[%clk 0:01:05]}  Ne5 {[%clk 0:00:58]} 29. fxe5 {[%clk 0:01:01]}  Rxg5+ {[%clk 0:00:58]} 30. Kh2 {[%clk 0:00:58]}  Rxh5 {[%clk 0:00:57]} 31. e6 {[%clk 0:00:55]}  f4 {[%clk 0:00:54]} 32. e7 {[%clk 0:00:54]}  Re8 {[%clk 0:00:53]} 33. a4 {[%clk 0:00:41]}  Bd7 {[%clk 0:00:48]} 34. Rb7 {[%clk 0:00:36]}  Rxh3+ {[%clk 0:00:43]} 35. Kg2 {[%clk 0:00:36]}  Rg3+ {[%clk 0:00:38]} 36. Kf2 {[%clk 0:00:35]}  Bh3 {[%clk 0:00:32]} 37. Ke2 {[%clk 0:00:27]}  Rc3 {[%clk 0:00:18]} 38. Bd4 {[%clk 0:00:26]}  Rxc2+ {[%clk 0:00:17]} 39. Kd1 {[%clk 0:00:26]}  Rc4 {[%clk 0:00:15]} 40. Be5 {[%clk 0:00:25]}  Bg4+ {[%clk 0:00:14]} 41. Kd2 {[%clk 0:00:23]}  Rxa4 {[%clk 0:00:08]} 42. Rg1 {[%clk 0:00:19]}  Ra2+ {[%clk 0:00:07]} 43. Kc3 {[%clk 0:00:19]}  Bc8 {[%clk 0:00:04]} 44. Rxg7+ {[%clk 0:00:18]}  Kh8 {[%clk 0:00:04]} 45. Rb6 {[%clk 0:00:17]}  Rh2 {[%clk 0:00:02]} 46. Rg2+ {[%clk 0:00:17]}  Kh7 {[%clk 0:00:02]} 47. Rxh2+ {[%clk 0:00:18]}  Kg8 {[%clk 0:00:02]} 48. Rhh6 {[%clk 0:00:17]}  Kf7 {[%clk 0:00:02]} 49. Rbf6+ {[%clk 0:00:17]}  Kxe7 {[%clk 0:00:03]} 50. Rh7+ {[%clk 0:00:17]}  Kd8 {[%clk 0:00:02]} 51. Bc7# {[%clk 0:00:17]} 1-0


[Site "https://www.chess.com"]

[Event "Titled Tuesday Blitz April 18 Early 2023"]
[White "Gontcharov, Vladislav"]
[Black "Skaric, Djuro"]
[WhiteFideId "4123492"]
[BlackFideId "934569"]
[WhiteElo "2420"]
[BlackElo "2282"]
[Result "1-0"]
[Round "03"]
[TimeControl "180+2"]
[Date "2023.04.18"]
[WhiteClock "0:00:37"]
[BlackClock "0:00:28"]

1. d4 {[%clk 0:03:00]}  d6 {[%clk 0:03:00]} 2. c4 {[%clk 0:02:55]}  g6 {[%clk 0:03:01]} 3. Nc3 {[%clk 0:02:55]}  Bg7 {[%clk 0:03:02]} 4. Nf3 {[%clk 0:02:55]}  Nf6 {[%clk 0:03:03]} 5. Bg5 {[%clk 0:02:52]}  h6 {[%clk 0:03:00]} 6. Bh4 {[%clk 0:02:51]}  O-O {[%clk 0:03:01]} 7. e3 {[%clk 0:02:51]}  Nc6 {[%clk 0:03:01]} 8. Be2 {[%clk 0:02:46]}  a6 {[%clk 0:03:01]} 9. Qc2 {[%clk 0:02:40]}  g5 {[%clk 0:03:01]} 10. Bg3 {[%clk 0:02:39]}  Nd7 {[%clk 0:03:01]} 11. Rd1 {[%clk 0:02:38]}  e6 {[%clk 0:02:55]} 12. h4 {[%clk 0:02:37]}  g4 {[%clk 0:02:55]} 13. Nd2 {[%clk 0:02:35]}  f5 {[%clk 0:02:52]} 14. f4 {[%clk 0:02:02]}  h5 {[%clk 0:02:38]} 15. a3 {[%clk 0:02:00]}  Ne7 {[%clk 0:02:38]} 16. b4 {[%clk 0:01:59]}  Ng6 {[%clk 0:02:38]} 17. Bf2 {[%clk 0:01:54]}  Qf6 {[%clk 0:02:38]} 18. g3 {[%clk 0:01:53]}  c6 {[%clk 0:02:38]} 19. Nb3 {[%clk 0:01:51]}  e5 {[%clk 0:02:36]} 20. dxe5 {[%clk 0:01:48]}  dxe5 {[%clk 0:02:36]} 21. Na4 {[%clk 0:01:46]}  Re8 {[%clk 0:02:35]} 22. O-O {[%clk 0:01:42]}  Kh7 {[%clk 0:02:31]} 23. c5 {[%clk 0:01:37]}  Rg8 {[%clk 0:02:28]} 24. Rd6 {[%clk 0:01:36]}  Qe7 {[%clk 0:02:14]} 25. Bd3 {[%clk 0:01:22]}  e4 {[%clk 0:02:06]} 26. Bc4 {[%clk 0:01:21]}  Rf8 {[%clk 0:02:03]} 27. Re6 {[%clk 0:01:17]}  Qd8 {[%clk 0:02:00]} 28. Rd1 {[%clk 0:01:16]}  Qc7 {[%clk 0:01:55]} 29. Red6 {[%clk 0:01:14]}  Nf6 {[%clk 0:01:51]} 30. Nb6 {[%clk 0:01:12]}  Rb8 {[%clk 0:01:50]} 31. Nd4 {[%clk 0:01:04]}  Ne8 {[%clk 0:01:29]} 32. Nxc8 {[%clk 0:00:56]}  Rxc8 {[%clk 0:01:13]} 33. Ne6 {[%clk 0:00:54]}  Qe7 {[%clk 0:01:09]} 34. Rd7 {[%clk 0:00:48]}  Qf6 {[%clk 0:01:06]} 35. Nxf8+ {[%clk 0:00:47]}  Nxf8 {[%clk 0:01:06]} 36. Rxb7 {[%clk 0:00:44]}  Ra8 {[%clk 0:01:05]} 37. a4 {[%clk 0:00:43]}  Kh6 {[%clk 0:00:57]} 38. a5 {[%clk 0:00:43]}  Qc3 {[%clk 0:00:55]} 39. Qxc3 {[%clk 0:00:42]}  Bxc3 {[%clk 0:00:54]} 40. Be1 {[%clk 0:00:42]}  Bf6 {[%clk 0:00:52]} 41. Kf2 {[%clk 0:00:40]}  Ng6 {[%clk 0:00:45]} 42. Ke2 {[%clk 0:00:41]}  Ne7 {[%clk 0:00:44]} 43. Rdd7 {[%clk 0:00:40]}  Ng8 {[%clk 0:00:39]} 44. Rb6 {[%clk 0:00:40]}  Ne7 {[%clk 0:00:36]} 45. Rxe7 {[%clk 0:00:37]}  Bxe7 {[%clk 0:00:35]} 46. Rxc6+ {[%clk 0:00:38]}  Kg7 {[%clk 0:00:35]} 47. Rxa6 {[%clk 0:00:38]}  Rb8 {[%clk 0:00:34]} 48. Rb6 {[%clk 0:00:38]}  Rd8 {[%clk 0:00:34]} 49. Rb7 {[%clk 0:00:38]}  Kf6 {[%clk 0:00:33]} 50. Bc3+ {[%clk 0:00:37]}  Kg6 {[%clk 0:00:28]} 51. Rxe7 {[%clk 0:00:37]} 1-0


[Site "https://www.chess.com"]

[Event "Titled Tuesday Blitz April 18 Early 2023"]
[White "benny_aizenberg"]
[Black "Garrido, Denis"]
[BlackFideId "601217"]
[WhiteElo "2554"]
[BlackElo "2334"]
[Result "1-0"]
[Round "03"]
[TimeControl "180+2"]
[Date "2023.04.18"]
[WhiteClock "0:01:31"]
[BlackClock "0:00:50"]

1. b3 {[%clk 0:03:00]}  g6 {[%clk 0:02:57]} 2. Bb2 {[%clk 0:03:01]}  Nf6 {[%clk 0:02:57]} 3. Bxf6 {[%clk 0:03:01]}  exf6 {[%clk 0:02:58]} 4. c4 {[%clk 0:02:59]}  Bg7 {[%clk 0:02:58]} 5. Nc3 {[%clk 0:02:59]}  f5 {[%clk 0:02:58]} 6. d4 {[%clk 0:02:59]}  d6 {[%clk 0:02:53]} 7. Nf3 {[%clk 0:02:58]}  Nd7 {[%clk 0:02:52]} 8. e3 {[%clk 0:02:57]}  Nf6 {[%clk 0:02:52]} 9. Bd3 {[%clk 0:02:56]}  O-O {[%clk 0:02:51]} 10. O-O {[%clk 0:02:56]}  Re8 {[%clk 0:02:51]} 11. Rc1 {[%clk 0:02:53]}  Bd7 {[%clk 0:02:45]} 12. b4 {[%clk 0:02:40]}  a5 {[%clk 0:02:44]} 13. a3 {[%clk 0:02:40]}  axb4 {[%clk 0:02:41]} 14. axb4 {[%clk 0:02:40]}  Ra3 {[%clk 0:02:41]} 15. c5 {[%clk 0:02:38]}  Bc6 {[%clk 0:02:20]} 16. Be2 {[%clk 0:02:22]}  Ne4 {[%clk 0:02:09]} 17. Nxe4 {[%clk 0:02:21]}  Bxe4 {[%clk 0:02:09]} 18. Nd2 {[%clk 0:02:20]}  dxc5 {[%clk 0:02:05]} 19. bxc5 {[%clk 0:02:18]}  Qa8 {[%clk 0:01:54]} 20. Nxe4 {[%clk 0:02:14]}  fxe4 {[%clk 0:01:53]} 21. Bc4 {[%clk 0:02:10]}  c6 {[%clk 0:01:45]} 22. Rb1 {[%clk 0:02:05]}  Qc8 {[%clk 0:01:32]} 23. Qd2 {[%clk 0:01:59]}  h5 {[%clk 0:01:15]} 24. Qb4 {[%clk 0:01:41]}  Ra7 {[%clk 0:01:15]} 25. Qb6 {[%clk 0:01:41]}  Ra4 {[%clk 0:00:58]} 26. Bxf7+ {[%clk 0:01:37]}  Kxf7 {[%clk 0:00:56]} 27. Qb3+ {[%clk 0:01:37]}  Kf8 {[%clk 0:00:51]} 28. Qxa4 {[%clk 0:01:37]}  Qg4 {[%clk 0:00:51]} 29. Rxb7 {[%clk 0:01:35]}  h4 {[%clk 0:00:50]} 30. h3 {[%clk 0:01:34]}  Qg5 {[%clk 0:00:50]} 31. Qxc6 {[%clk 0:01:31]} 1-0


[Site "https://www.chess.com"]

[Event "Titled Tuesday Blitz April 18 Early 2023"]
[White "koncheto"]
[Black "Zaichenko, Daria"]
[BlackFideId "4197453"]
[WhiteElo "2551"]
[BlackElo "2039"]
[Result "1/2-1/2"]
[Round "03"]
[TimeControl "180+2"]
[Date "2023.04.18"]
[WhiteClock "0:00:05"]
[BlackClock "0:00:09"]

1. e4 {[%clk 0:03:00]}  c5 {[%clk 0:02:59]} 2. Nf3 {[%clk 0:03:01]}  Nc6 {[%clk 0:02:58]} 3. d4 {[%clk 0:03:01]}  cxd4 {[%clk 0:02:56]} 4. Nxd4 {[%clk 0:03:02]}  Nf6 {[%clk 0:02:56]} 5. Nc3 {[%clk 0:03:02]}  d6 {[%clk 0:02:57]} 6. Bg5 {[%clk 0:03:01]}  e6 {[%clk 0:02:55]} 7. Qd2 {[%clk 0:03:01]}  a6 {[%clk 0:02:54]} 8. O-O-O {[%clk 0:03:01]}  Bd7 {[%clk 0:02:54]} 9. f4 {[%clk 0:02:58]}  Be7 {[%clk 0:02:54]} 10. Nf3 {[%clk 0:02:48]}  b5 {[%clk 0:02:47]} 11. a3 {[%clk 0:02:48]}  Rc8 {[%clk 0:02:39]} 12. e5 {[%clk 0:02:48]}  dxe5 {[%clk 0:02:38]} 13. fxe5 {[%clk 0:02:48]}  Ng8 {[%clk 0:02:37]} 14. Ne4 {[%clk 0:02:45]}  Bxg5 {[%clk 0:02:33]} 15. Nd6+ {[%clk 0:02:44]}  Ke7 {[%clk 0:02:31]} 16. Qxg5+ {[%clk 0:02:43]}  Kf8 {[%clk 0:02:29]} 17. Nxc8 {[%clk 0:02:41]}  Qxc8 {[%clk 0:02:28]} 18. Be2 {[%clk 0:02:34]}  Nge7 {[%clk 0:02:26]} 19. Rhf1 {[%clk 0:02:32]}  Nd5 {[%clk 0:02:23]} 20. Nd4 {[%clk 0:02:29]}  b4 {[%clk 0:02:21]} 21. Nxc6 {[%clk 0:02:25]}  Bxc6 {[%clk 0:02:20]} 22. axb4 {[%clk 0:02:23]}  Ba4 {[%clk 0:02:17]} 23. Rd2 {[%clk 0:02:04]}  h6 {[%clk 0:02:16]} 24. Qh5 {[%clk 0:01:56]}  Qc7 {[%clk 0:02:11]} 25. Bc4 {[%clk 0:01:35]}  Ne3 {[%clk 0:02:08]} 26. Rdf2 {[%clk 0:00:41]}  Nxf1 {[%clk 0:01:59]} 27. Bxe6 {[%clk 0:00:41]}  Be8 {[%clk 0:01:54]} 28. Rxf1 {[%clk 0:00:40]}  Qe7 {[%clk 0:01:44]} 29. Bb3 {[%clk 0:00:29]}  f6 {[%clk 0:01:33]} 30. Qf5 {[%clk 0:00:21]}  Bd7 {[%clk 0:01:29]} 31. Qf4 {[%clk 0:00:19]}  f5 {[%clk 0:01:24]} 32. e6 {[%clk 0:00:14]}  Bc6 {[%clk 0:00:52]} 33. Qxf5+ {[%clk 0:00:12]}  Ke8 {[%clk 0:00:52]} 34. Qh5+ {[%clk 0:00:09]}  Kd8 {[%clk 0:00:51]} 35. Rd1+ {[%clk 0:00:09]}  Kc8 {[%clk 0:00:50]} 36. Qa5 {[%clk 0:00:05]}  Qg5+ {[%clk 0:00:46]} 37. Qxg5 {[%clk 0:00:05]}  hxg5 {[%clk 0:00:46]} 38. e7 {[%clk 0:00:04]}  Re8 {[%clk 0:00:38]} 39. Be6+ {[%clk 0:00:05]}  Kc7 {[%clk 0:00:37]} 40. Bd5 {[%clk 0:00:05]}  Rxe7 {[%clk 0:00:36]} 41. Bxc6 {[%clk 0:00:06]}  Kxc6 {[%clk 0:00:37]} 42. c3 {[%clk 0:00:05]}  Re2 {[%clk 0:00:36]} 43. Rd2 {[%clk 0:00:06]}  Re1+ {[%clk 0:00:36]} 44. Kc2 {[%clk 0:00:06]}  g4 {[%clk 0:00:33]} 45. h3 {[%clk 0:00:06]}  gxh3 {[%clk 0:00:32]} 46. gxh3 {[%clk 0:00:07]}  Re3 {[%clk 0:00:31]} 47. Rg2 {[%clk 0:00:07]}  Rxh3 {[%clk 0:00:31]} 48. Rxg7 {[%clk 0:00:07]}  Kb5 {[%clk 0:00:29]} 49. Kb3 {[%clk 0:00:07]}  Rf3 {[%clk 0:00:29]} 50. Rg6 {[%clk 0:00:07]}  Re3 {[%clk 0:00:28]} 51. Rg5+ {[%clk 0:00:07]}  Kb6 {[%clk 0:00:27]} 52. Ka4 {[%clk 0:00:07]}  Re2 {[%clk 0:00:26]} 53. Rg6+ {[%clk 0:00:06]}  Ka7 {[%clk 0:00:24]} 54. Kb3 {[%clk 0:00:05]}  Re3 {[%clk 0:00:23]} 55. Kc4 {[%clk 0:00:05]}  Re4+ {[%clk 0:00:23]} 56. Kd5 {[%clk 0:00:05]}  Re2 {[%clk 0:00:23]} 57. b3 {[%clk 0:00:06]}  Rb2 {[%clk 0:00:23]} 58. Kc4 {[%clk 0:00:06]}  Rf2 {[%clk 0:00:22]} 59. Rd6 {[%clk 0:00:04]}  Rf4+ {[%clk 0:00:21]} 60. Rd4 {[%clk 0:00:04]}  Rf5 {[%clk 0:00:21]} 61. Rd5 {[%clk 0:00:04]}  Rf4+ {[%clk 0:00:22]} 62. Kc5 {[%clk 0:00:05]}  Rf3 {[%clk 0:00:21]} 63. Rd7+ {[%clk 0:00:04]}  Kb8 {[%clk 0:00:20]} 64. Kb6 {[%clk 0:00:05]}  Kc8 {[%clk 0:00:19]} 65. Rd4 {[%clk 0:00:04]}  Rf6+ {[%clk 0:00:18]} 66. Ka5 {[%clk 0:00:04]}  Kb7 {[%clk 0:00:19]} 67. c4 {[%clk 0:00:04]}  Rf2 {[%clk 0:00:17]} 68. Rd7+ {[%clk 0:00:04]}  Kc6 {[%clk 0:00:17]} 69. b5+ {[%clk 0:00:01]}  axb5 {[%clk 0:00:13]} 70. Rd3 {[%clk 0:00:01]}  bxc4 {[%clk 0:00:12]} 71. bxc4 {[%clk 0:00:02]}  Kc5 {[%clk 0:00:11]} 72. Rd5+ {[%clk 0:00:02]}  Kxc4 {[%clk 0:00:12]} 73. Rb5 {[%clk 0:00:03]}  Ra2+ {[%clk 0:00:11]} 74. Kb6 {[%clk 0:00:04]}  Rd2 {[%clk 0:00:09]} 75. Kc6 {[%clk 0:00:04]}  Rd6+ {[%clk 0:00:09]} 76. Kxd6 {[%clk 0:00:05]}  Kxb5 {[%clk 0:00:09]} 1/2-1/2


[Site "https://www.chess.com"]